Cogmind - Beta 10.2 @@@ ROGUE MODE // 2021.04.26 @ 17:02:35 Player: Exp. Geonium Core Result: Core destroyed Performance ------------- Evolutions (0) 0 Regions Visited (2) 400 Robots Destroyed (2) 10 Value Destroyed (20) 20 Prototype IDs (0) 0 Alien Tech Used (0) 0 Bonus (0) 0 TOTAL SCORE: 430 Bonus ------- None Cogmind --------- Core Integrity 0/250 Matter 300/300 Energy 100/100 System Corruption 2% Temperature Cool (0) Movement Core (100) Ox1 Location -10/Mines Parts ------- > --- POWER (1) -------- (None) > --- PROPULSION (2) --- (None) > --- UTILITY (2) ------ Small Storage Unit > --- WEAPON (2) ------- (None) > --- INVENTORY (6) ---- Datajack Peak State ------------ > --- POWER ------------ Ion Engine > --- PROPULSION ------- Light Treads Light Treads > --- UTILITY ---------- Small Storage Unit > --- WEAPON ----------- EM Pulse Gun Medium Laser > --- INVENTORY -------- (None) [Rating: 6] Favorites ----------- Power Ion Engine Engine Ion Engine Propulsion Light Treads Treads Light Treads Utility Small Storage Unit Storage Small Storage Unit Weapon EM Pulse Gun Energy Gun EM Pulse Gun Build | -11 -10 -10 ------- Run | Scr Mat Min Slots Evolved . | . . . Power . | . . . Propulsion . | . . . Utility . | . . . Weapon . | . . . Parts Attached 6 | 6 . . Power 1 | 1 . . Engine 1 | 1 . . Core . | . . . Reactor . | . . . Propulsion 2 | 2 . . Treads 2 | 2 . . Leg . | . . . Wheel . | . . . Hover . | . . . Flight . | . . . Utility 1 | 1 . . Device . | . . . Storage 1 | 1 . . Processor . | . . . Hackware . | . . . Protection . | . . . Artifact . | . . . Weapon 2 | 2 . . Energy Gun 2 | 2 . . Energy Cannon . | . . . Ballistic Gun . | . . . Ballistic Cannon . | . . . Launcher . | . . . Special Weapon . | . . . Impact Weapon . | . . . Slashing Weapon . | . . . Piercing Weapon . | . . . Special Melee Weapon . | . . . Unidentified Prototypes . | . . . Parts Lost 5 | . . 5 Power 1 | . . 1 Propulsion 2 | . . 2 Utility . | . . . Weapon 2 | . . 2 Highest Loss Streak 5 | . . 5 Average Slot Usage (%) 78 | . 85 72 Engine 12 | . 14 11 Treads 27 | . 28 26 Storage 14 | . 14 14 Energy Gun 23 | . 28 19 Naked Turns . | . . . Heaviest Build 13 | 13 13 13 Greatest Support 40 | 40 40 40 Greatest Overweight (x) 1 | 1 . 1 Average Overweight (x) . | . . . Largest Inventory Capacity 6 | 6 6 6 Average Capacity 5 | 5 6 6 Most Carried 1 | . 1 1 Average Carried . | . . 1 Final Capacity 6 | 6 6 6 Final Carried 1 | . 1 1 Class Distribution -------------------- 100% | Mutant Dominant Class ---------------- Mutant | -10/Materials Mutant | -10/Mines Resources | -11 -10 -10 ----------- Run | Scr Mat Min Matter Collected 260 | 238 . 22 Remotely . | . . . Salvage Created 36 | . . 36 Parts 4 | . . 4 Haulers Intercepted . | . . . Recyclers Shooed . | . . . Parts Field Recycled . | . . . Retrieved Matter . | . . . Parts Self-Destructed . | . . . Prevented . | . . . Kills | -11 -10 -10 ------- Run | Scr Mat Min Combat Hostiles Destroyed 2 | . . 2 Melee 1 | . . 1 Guns 1 | . . 1 Classes Destroyed 1 | . . 1 Swarmer 2 | . . 2 Best Kill Streak 1 | . . 1 Combat Bots Only 1 | . . 1 Max Kills in Single Turn 1 | . . 1 Gunslinging . | . . . Exploded . | . . . Melee 1 | . . 1 Uniques/NPCs Destroyed . | . . . Combat | -11 -10 -10 -------- Run | Scr Mat Min Damage Taken 722 | . . 722 Core 251 | . . 251 Absorbed by Shields . | . . . Core Remaining (%) 100 | 100 . . Volleys Fired 8 | . . 8 Largest 2 | . . 2 Hottest 90 | . . 90 Shots Fired 13 | . . 13 Gun 13 | . . 13 Cannon . | . . . Launcher . | . . . Special . | . . . Kinetic . | . . . Thermal 5 | . . 5 Explosive . | . . . Electromagnetic 8 | . . 8 Robot Hit Streak 1 | . . 1 Robot Miss Streak 4 | . . 4 Penetration Max . | . . . Secondary Targets 1 | . . 1 Max Gunslinging Chain 1 | . . 1 Shots Hit Robots 3 | . . 3 Core Hits 10 | . . 10 Critical Hits . | . . . Critical Kills . | . . . Critical Parts Destroyed . | . . . Melee Attacks . | . . . Impact . | . . . Slashing . | . . . Piercing . | . . . Sneak Attacks . | . . . Combat Hostiles . | . . . Follow-up Attacks . | . . . Damage Inflicted 53 | . . 53 Guns 34 | . . 34 Cannons . | . . . Explosions . | . . . Melee . | . . . Ramming 19 | . . 19 Kinetic . | . . . Thermal . | . . . Explosive . | . . . Electromagnetic 34 | . . 34 Impact . | . . . Slashing . | . . . Piercing . | . . . Highest Corruption 2 | . 2 2 Average Corruption 2 | . 2 2 Corruption Purged . | . . . Effects 4 | . 3 1 Message Errors 2 | . 2 . Heat Flow Errors 1 | . 1 . Data Loss (minor) 1 | . . 1 Overload Shots . | . . . Overflow Damage . | . . . Projectiles . | . . . Explosions . | . . . Melee . | . . . Knockbacks . | . . . Impact . | . . . Kinetic . | . . . Secondary . | . . . Self-Inflicted Damage 4 | . . 4 Shots . | . . . Rammed 19 | . . 19 Targets Rammed 19 | . . 19 Kicked . | . . . Crushed . | . . . Highest Temperature 155 | . 155 150 Average Temperature 90 | . 80 93 Received Heat Transfer . | . . . Siege Activations . | . . . Robots Corrupted . | . . . Combat Hostiles . | . . . Parts Fried . | . . . Impact Corruptions . | . . . Robots Melted . | . . . Combat Hostiles . | . . . Parts Melted . | . . . Heat Transferred . | . . . Parts Sabotaged . | . . . Parts Stolen . | . . . Parts Stripped . | . . . Power Chain Reactions . | . . . Missiles Intercepted . | . . . Alert | -11 -10 -10 ------- Run | Scr Mat Min Peak Influence 30 | . 15 30 Initial 5 | . . 5 Average 9 | . 14 6 Maximum Alert Level . | . . . Low Security (%) 100 | 100 100 100 Level 1 . | . . . Level 2 . | . . . Level 3 . | . . . Level 4 . | . . . Level 5 . | . . . High Security . | . . . Max Security . | . . . Squads Dispatched 1 | . 1 . Investigation 1 | . 1 . Extermination . | . . . Reinforcement . | . . . Assault . | . . . Garrison . | . . . Intercept . | . . . Construction Impeded . | . . . Haulers Reinforced . | . . . Stealth | -11 -10 -10 --------- Run | Scr Mat Min Distress Signals . | . . . Communications Jammed . | . . . Distress Signals . | . . . Times Spotted 5 | . 1 4 Peak Tracking Total 3 | . 1 3 Tactical Retreats 1 | . . 1 Traps | -11 -10 -10 ------- Run | Scr Mat Min Traps Triggered 1 | . 1 . Indirectly . | . . . Trap Hack Attempts . | . . . Triggered . | . . . Disarmed . | . . . Reprogrammed . | . . . Reused . | . . . Traps Extracted . | . . . Installed . | . . . Triggered . | . . . Machines | -11 -10 -10 ---------- Run | Scr Mat Min Machines Disabled . | . . . Max in Single Turn . | . . . Machines Sabotaged . | . . . Garrisons Compromised . | . . . Overloaded Fab Kills . | . . . Fab Network Shutdowns . | . . . Hacking | -11 -10 -10 --------- Run | Scr Mat Min Machines Accessed 1 | . 1 . Terminals 1 | . 1 . Fabricators . | . . . Repair Stations . | . . . Recycling Units . | . . . Scanalyzers . | . . . Garrison Access . | . . . Total Hacks 2 | . 2 . Successful . | . . . Failed 2 | . 2 . Catastrophic 1 | . 1 . Database Lockouts . | . . . Manual . | . . . Terminals 2 | . 2 . Fabricators . | . . . Repair Stations . | . . . Recycling Units . | . . . Scanalyzers . | . . . Garrison Access . | . . . Terminal Hacks . | . . . Fabricator Hacks . | . . . Repair Station Hacks . | . . . Recycling Unit Hacks . | . . . Scanalyzer . | . . . Garrison Access Hacks . | . . . Unauthorized Hacks . | . . . Terminals . | . . . Fabricators . | . . . Repair Stations . | . . . Recycling Units . | . . . Scanalyzers . | . . . Garrison Access . | . . . Data Cores Recovered . | . . . Used . | . . . Hacking Detections 1 | . 1 . Full Trace Events 1 | . 1 . Feedback Events . | . . . Feedback Blocked . | . . . Robot Schematics Acquired . | . . . Robots Built . | . . . Matter . | . . . Time . | . . . Total Robot Build Rating . | . . . Part Schematics Acquired . | . . . Parts Built . | . . . Matter . | . . . Time . | . . . Total Part Build Rating . | . . . Parts Repaired . | . . . Time . | . . . Parts Recycled . | . . . Recycled Matter . | . . . Retrieved Matter . | . . . Retrieved Components . | . . . Parts Scanalyzed . | . . . Part Schematics Acquired . | . . . Parts Damaged . | . . . Bothacking | -11 -10 -10 ------------ Run | Scr Mat Min Used RIF Installer . | . . . Robots Hacked . | . . . Non-combat . | . . . Combat . | . . . Robot Hacks Applied . | . . . Relay Couplers Released . | . . . Robots Rewired . | . . . Allies Hacked . | . . . Hacks Repelled . | . . . Allies | -11 -10 -10 -------- Run | Scr Mat Min Total Allies . | . . . Largest Group . | . . . Highest-Rated Group . | . . . Highest-Rated Ally . | . . . Total Orders . | . . . Ally Attacks . | . . . Total Damage . | . . . Kills . | . . . Allies Corrupted . | . . . Allies Melted . | . . . Intel | -11 -10 -10 ------- Run | Scr Mat Min Robot Analysis Total . | . . . Derelict Logs Recovered 1 | . . 1 Drone Launches . | . . . Drone Recoveries . | . . . Exploration | -11 -10 -10 ------------- Run | Scr Mat Min Turns Passed 518 | 55 227 236 Spaces Moved 268 | 33 131 104 Core 10 | 6 . 4 Treads 258 | 27 131 100 Legs . | . . . Wheels . | . . . Hover . | . . . Flight . | . . . Fastest Speed 50 | 50 160 100 Average Speed 156 | 141 160 157 Slowest Speed 160 | 160 160 160 Overloaded Moves . | . . . Propulsion Burnouts . | . . . Robots Hopped . | . . . Cave-ins Triggered . | . . . Exploration Rate (%) 24 | 4 37 32 Regions Visited 2 Branch Regions 1 Pre-discovered Areas 1 | . . 1 Known Exits Taken . | . . . Unknown Exits Taken 2 | 1 1 . Scrap Searched 1 | . . 1 Spaces Dug . | . . . Terrain Destroyed . | . . . Melee . | . . . Projectile . | . . . AOE . | . . . Terrain Rammed . | . . . Walls Destroyed . | . . . Machines Disabled . | . . . Actions | -11 -10 -10 --------- Run | Scr Mat Min Total 339 | 38 149 152 Wait 40 | . 18 22 Move 266 | 32 130 104 Hop . | . . . Pick Up 1 | . 1 . Fast Attach 6 | 6 . . Attach . | . . . Detach . | . . . Swap . | . . . Drop . | . . . Fire 8 | . . 8 Melee . | . . . Ram 1 | . . 1 Kick . | . . . Crush 17 | . . 17 Escape Stasis . | . . . Rewire . | . . . Trap . | . . . Miscellaneous . | . . . Route ------- -11/Scrapyard -10/Materials -10/Mines History --------- Turn | Location | Event 7 | -11/Scrapyard | Discovered new exit (range 15) 56 | -11/Scrapyard | Entered Materials 106 | -10/Materials | Discovered new exit (range 6) 283 | -10/Materials | Entered Mines 304 | -10/Mines | Build established: Mutant 327 | -10/Mines | Learned location of Mines (-8) 485 | -10/Mines | Core integrity fell below 50% 509 | -10/Mines | Core integrity fell below 20% 519 | -10/Mines | Core destroyed Last Messages --------------- 00335_ K-01 Serf collects debris. 00418_ T-07 Excavator is excavating. 00418_ U-05 Engineer builds a Wall. 00419_ T-07 Excavator is excavating. 00422_ U-05 Engineer lays Concrete. 00425_ System corrupted: Component data lost. 00439_ S-10 Pest destroyed. 00439_ Switching to secondary target: S-10 Pest. 00441_ Med. Laser destroyed. 00445_ R-06 Scavenger collects Flight Unit. 00448_ EM Pulse Gun destroyed. 00449_ R-06 Scavenger collects Flight Unit. 00473_ Ion Engine destroyed. 00475_ Slammed into S-10 Pest. 00490_ Lgt. Treads destroyed. 00491_ Slammed into S-10 Pest. 00513_ Lgt. Treads destroyed. 00514_ Slammed into S-10 Pest. 00514_ S-10 Pest destroyed. 00519_ Slammed into S-10 Pest. Map ----- +----------------------------------------------------+ | ???????????## ## #???????????? | | ????????????# #?# #???????????? | | ????????????# #### #???????????? | | ????????????# #???????????? | | ????????????###### #???????????? | | ?????????????????# ##??????????? | | ?????????????????# ##?????????? | | ????????????????## ##????????? | | ???????????????## ##???????? | | ???????????????# ###?????? | | ???????????????# ##????? | | ???????????????## #????? | | ????????????????## #### ##????? | | ?????????????????# ##??####?????? | | ?????????????????# #????????????? | | ?????????????????# #????????????? | | ?????????????????# #????????????? | | ?????????????????# #????????????? | | ?????????????????# #????????????? | | ?????????????##### #????????????? | | ?????????????# #?########???? | | ??????????#### #####?# #???? | | ??????????# #?????# #???? | | ??????????# ####?????# *%%% #???? | | ??????????# #????????# =%s%%#???? | | ??????????# #????????####@###???? | | ??????????# #???????????#%#?????? | | ??????????# #?###???????#%#?????? | | ???# # #### ### ##??????#%#?????? | | ???# #??????#r#?????? | | ???# ##?????#%#?????? | | ???# ######## #######%###???? | | ?????????????## %%% #???? | | ??????????????#% % #???? | | ?????????????# ######## #???? | | ???????????# ##??????? #???? | | ??????????# #???????? #???? | | ??????????# ##???????? #???? | | ??????????# ##????????? #???? | | ?????????# #??????????? #???? | | ???????? ???????????? #???? | | ??????? #???????????? #???? | | ??????# #?????????????? ???? | | ??????## ??????????????? ???? | | ???????## #??????????????? ???? | | ?????????##???????????????? ???? | | ????????????????????????????? ??? | | ????????????????????????????????? | | ????????????????????????????????? | | ????????????????????????????????? | +----------------------------------------------------+ Best States ------------- Heat Dissipation 25 Energy Generation 10 Energy Capacity 250 Matter Stores 300 Matter Capacity 300 Sight Range 16 Terrain Scan Density 10 Evasion (%) 40 Recoil Reduction 2 Item Schematics ----------------- None Robot Schematics ------------------ None Fabricated ------------ Nothing Alien Tech Used ----------------- None Achievements -------------- None Challenges ------------ None Game ------ Seed ComponentCompactUnit Manual? 0 Play Time 00:03:20 Cumulative 81.2 hours Start 2021.04.26 @ 16:59:07 End 2021.04.26 @ 17:02:35 Sessions 1 Manual Loads 0 Difficulty Rogue Special Mode None Game No. 128 Rogue 128 Adventurer 0 Explorer 0 Win Type - Total 1 Types 1/0/0/0/0/0/0/0/0 Lore% 44 Gallery% 63 Achievement% 51 Wizard Run 0 Options --------- ASCII 0 Keyboard 0 Movement Numpad Keybinds 0 Fullscreen 1 Font 18/Terminus Map View 76x50 Tactical HUD 1 Map Filters NONE Filters NONE Steam 1 RUN: f9a452bb-7a8a-4298-8243-234fe6317143